[Event "Fredericia IM 2022"]
[Site "Fredericia"]
[Date "2022.05.26"]
[Round "2.1"]
[White "Hilwerda, FM Jonas"]
[Black "Storme, FM Isak"]
[Result "1/2-1/2"]
[ECO "C45"]
[WhiteElo "2275"]
[BlackElo "2388"]
[Annotator "TA"]
[PlyCount "46"]
[EventDate "2022.05.25"]
[EventType "tourn"]
[EventCountry "DEN"]
[SourceTitle "playchess.com"]
[Source "ChessBase"]
[SourceQuality "1"]
[TimeControl "40/5400+30:1800+30"]

{[%evp 17,46,-4,-9,-20,-24,-15,-9,-4,-9,-20,-10,-2,0,0,0,-5,0,0,0,0,0,0,0,0,0,0,0,0,0,0,0]} 1. e4 {[%emt 0:00:22]} e5 {[%emt 0:00:10]} 2. Nf3 {[%emt 0:00:37]} Nc6 {[%emt 0:00:08]} 3. d4 {[%emt 0:00:41]} exd4 {[%emt 0:00:10]} 4. Nxd4 {[%emt 0:00:06]} Nf6 {[%emt 0:00:15][%cal Bg8f6,Bf6d5,Bd5b4][%mdl 32]} 5. Nxc6 {[%emt 0:00:26]} bxc6 {[%emt 0:00:16]} 6. e5 {[%emt 0:00:06]} Qe7 {[%emt 0:00:09]} 7. Qe2 {[%emt 0:00:05]} Nd5 {[%emt 0:00:20]} 8. c4 {[%emt 0:01:11]} Ba6 {[%emt 0:00:42]} 9. b3 {[%emt 0:00:56]} g6 {[%emt 0:01:19]} 10. Ba3 $1 {[%emt 0:00:11][%mdl 4] now scores much better than the old 10.f4. C45: Scotch Game.} Nb4 {[%emt 0:03:53]} 11. Bb2 {[%emt 0:00:33][%cal Oe5e6]} Bg7 $1 {[%emt 0:02:11] The position is equal.} 12. a3 {[%emt 0:00:23]} Nd5 {[%emt 0:00:15]} 13. Nd2 {[%emt 0:00:22][%cal Bb1d2,Bd2e4,Be4f6][%mdl 32]} O-O {[%emt 0:01:42]} 14. O-O-O {[%emt 0:00:26]} Rfe8 {[%emt 0:09:37]} 15. Qf3 {[%emt 0:00:23] Inhibits Nf4.} Nb6 {[%emt 0:00:33]} 16. Ne4 {[%emt 0:00:24]} Bxe5 {[%emt 0:02:19]} 17. Bxe5 {[%emt 0:00:09][%mdl 64] [#] Remove Defender} Qxe5 {[%emt 0:00:09]} 18. Nf6+ {[%emt 0:00:05]} Kf8 {[%emt 0:08:24] Strongly threatening ...Qa1+.} 19. Nxe8 {[%emt 0:00:11] aiming for Nf6.} Qa1+ {[%emt 0:00:14]} 20. Kc2 {[%emt 0:00:06]} Qa2+ {[%emt 0:00:08]} 21. Kc1 $1 {[%emt 0:00:05] [#]} ({But not} 21. Kc3 $2 Rxe8 22. Bd3 Bxc4 23. Bxc4 (23. bxc4 {gets mated.} Na4+ 24. Kb4 Rb8+ 25. Ka5 Qxa3) 23... Nxc4 $19) 21... Qa1+ $146 {[%emt 0:00:07]} ({Predecessor:} 21... Qxa3+ 22. Kb1 Na4 23. Qf6 Qxb3+ 24. Kc1 Qa3+ 25. Kc2 Qa2+ 26. Kc1 Qa3+ 27. Kc2 Qa2+ 28. Kc1 {½-½ (28) Wang,H (2762)-Ding,L (2805) Ekaterinburg 2021}) 22. Kc2 {[%emt 0:00:04]} Qa2+ {[%emt 0:00:06]} 23. Kc1 $1 {[%emt 0:00:04]} (23. Kc3 Rxe8 24. Qf6 Kg8 $19) 23... Qa1+ {[%emt 0:00:07] A balanced but interesting game.  Weighted Error Value: White=0.00 (flawless) /Black=0.01 (flawless)} 1/2-1/2

[Event "Fredericia IM 2022"]
[Site "Fredericia"]
[Date "2022.05.26"]
[Round "2.2"]
[White "Easwaralingam, Adesh"]
[Black "Vinter-Schou, IM Uffe"]
[Result "*"]
[ECO "B43"]
[WhiteElo "2116"]
[BlackElo "2321"]
[Annotator "TA"]
[PlyCount "30"]
[EventDate "2022.05.25"]
[EventType "tourn"]
[EventCountry "DEN"]
[SourceTitle "playchess.com"]
[Source "ChessBase"]
[SourceQuality "1"]
[TimeControl "40/5400+30:1800+30"]

{[%evp 14,30,32,23,41,25,73,65,68,73,79,73,104,93,105,77,99,-10,0]} 1. e4 {[%emt 0:00:05]} c5 {[%emt 0:00:49]} 2. Nf3 {[%emt 0:00:51]} e6 {[%emt 0:00:10]} 3. d4 {[%emt 0:00:38]} cxd4 {[%emt 0:00:06]} 4. Nxd4 {[%emt 0:00:05]} a6 {[%emt 0:00:06]} 5. Nc3 {[%emt 0:01:29]} b5 {[%emt 0:00:14]} 6. Bd3 {[%emt 0:00:30]} Qb6 {[%emt 0:00:11]} 7. Nb3 {[%emt 0:00:29]} Qc7 {[%emt 0:00:09]} 8. O-O {[%emt 0:00:45]} d6 {[%emt 0:00:05] B43: Sicilian: Kan Variation: 5 Nc3.} 9. Bd2 {[%emt 0:02:44]} Nf6 {[%emt 0:01:00]} (9... Nc6 $11 {might be stronger.}) 10. a4 $16 {[%emt 0:00:09]} b4 {[%emt 0:01:28] White is slightly better.} 11. Na2 {[%emt 0:00:08] [#]} Bb7 $146 {[%emt 0:02:17]} ({Predecessor:} 11... d5 12. exd5 Nxd5 13. c4 Nf6 14. Nxb4 Bd6 15. h3 Bb7 16. c5 Bh2+ 17. Kh1 Bf4 {½-½ (65) Gonzalez de la Torre,S (2472)-Romero Berruezo,F (2154) Linares 2013}) 12. Re1 {[%emt 0:02:45]} d5 {[%emt 0:05:29] [#]} 13. exd5 {[%emt 0:00:58]} ({Of course not} 13. Bxb4 $6 Bxb4 14. Nxb4 dxe4 $11) ({Stronger than} 13. Nxb4 dxe4 14. Bf1 Bd6 $15) 13... Nxd5 {[%emt 0:00:18]} 14. Qg4 {[%emt 0:06:47][%cal Ra2b4]} Nc6 {[%emt 0:11:12] [#]} 15. Qc4 {[%emt 0:09:53] White is more active.} (15. Qh5 $1 $16 {[%cal Rh5d5] Strongly threatening Qxd5.} O-O-O 16. Qe2) 15... Be7 {[%emt 0:06:32] Weighted Error Value: White=0.26 (precise) /Black=0.16 (very precise)} *

[Event "Fredericia IM 2022"]
[Site "Fredericia"]
[Date "2022.05.26"]
[Round "2.2"]
[White "Easwaralingam, Adesh"]
[Black "Vinter-Schou, Uffe"]
[Result "1/2-1/2"]
[ECO "B43"]
[WhiteElo "2116"]
[BlackElo "2321"]
[Annotator "TA"]
[PlyCount "61"]
[EventDate "2022.05.25"]
[EventType "tourn"]
[EventCountry "DEN"]
[SourceTitle "playchess.com"]
[Source "ChessBase"]
[SourceQuality "1"]
[TimeControl "40/5400+30:1800+30"]

{[%evp 14,61,41,29,40,44,68,67,69,69,83,75,108,99,107,67,70,-10,-5,-42,31,-19,0,-7,-10,-16,0,-27,0,7,45,43,34,0,195,195,190,206,203,211,181,93,91,0,0,0,0,-2,-4,-3]} 1. e4 {[%emt 0:00:05]} c5 {[%emt 0:00:49]} 2. Nf3 {[%emt 0:00:51]} e6 {[%emt 0:00:10]} 3. d4 {[%emt 0:00:38]} cxd4 {[%emt 0:00:06]} 4. Nxd4 {[%emt 0:00:05]} a6 {[%emt 0:00:06]} 5. Nc3 {[%emt 0:01:29]} b5 {[%emt 0:00:14]} 6. Bd3 {[%emt 0:00:30]} Qb6 {[%emt 0:00:11]} 7. Nb3 {[%emt 0:00:29]} Qc7 {[%emt 0:00:09]} 8. O-O {[%emt 0:00:45]} d6 {[%emt 0:00:05] B43: Sicilian: Kan Variation: 5 Nc3.} 9. Bd2 {[%emt 0:02:44]} Nf6 {[%emt 0:01:00]} 10. a4 {[%emt 0:00:09]} b4 {[%emt 0:01:28] White is slightly better.} 11. Na2 {[%emt 0:00:08] [#]} Bb7 $146 {[%emt 0:02:17]} ({Predecessor:} 11... d5 12. exd5 Nxd5 13. c4 Nf6 14. Nxb4 Bd6 15. h3 Bb7 16. c5 Bh2+ 17. Kh1 Bf4 {½-½ (65) Gonzalez de la Torre,S (2472)-Romero Berruezo,F (2154) Linares 2013}) 12. Re1 {[%emt 0:02:45]} d5 {[%emt 0:05:29]} 13. exd5 {[%emt 0:00:58]} ({Reject} 13. Bxb4 $6 Bxb4 14. Nxb4 dxe4 $11) ({And not} 13. Nxb4 dxe4 14. Bf1 Bd6 $15) 13... Nxd5 {[%emt 0:00:18]} 14. Qg4 {[%emt 0:06:47] Nd4 is the strong threat.} Nc6 {[%emt 0:11:12]} 15. Qc4 {[%emt 0:09:53] White is more active.} (15. Qh5 $1 $14 O-O-O 16. Qe2) 15... Be7 $11 {[%emt 0:06:32]} 16. Be4 {[%emt 0:07:32]} Nb6 {[%emt 0:07:05]} (16... O-O $15) 17. Qe2 {[%emt 0:01:35]} ({Better is} 17. Bxc6+ $14 Bxc6 18. Qg4) 17... O-O {[%emt 0:12:54]} 18. c3 {[%emt 0:08:35]} bxc3 $1 {[%emt 0:12:22]} 19. Nxc3 {[%emt 0:00:41][%cal Ba2c3,Bc3e4,Be4c5][%mdl 32]} Nb4 {[%emt 0:07:51]} 20. Rac1 {[%emt 0:02:54][%cal Oc3d5] Threatens to win with Nd5!} Bxe4 {[%emt 0:04:36]} (20... Qd7 $5 {[%cal Rb7e4]}) 21. Nxe4 {[%emt 0:03:31]} Qe5 {[%emt 0:01:25]} 22. Bc3 $36 {[%emt 0:02:45][%mdl 2048] White has good play.} Qf4 {[%emt 0:03:03]} 23. Bd2 {[%emt 0:02:23]} Qh4 {[%emt 0:04:25]} (23... Qe5 $11 {and Black has nothing to worry.}) 24. a5 $1 $18 {[%emt 0:04:00]} N6d5 {[%emt 0:00:13]} 25. Rc4 {[%emt 0:00:18] aiming for Nec5.} Rfc8 {[%emt 0:12:55]} 26. Nec5 {[%emt 0:15:00]} Qf6 {[%emt 0:00:05][%cal Of6b2] [#]} 27. Bxb4 {[%emt 0:02:02]} ({White should play} 27. Rec1 $1 $18 Bxc5 28. Nxc5) 27... Nxb4 $16 {[%emt 0:00:03][%mdl 64] [#] Remove Defender} 28. Rxb4 {[%emt 0:04:22]} ({White should try} 28. Rec1 $1 $16 Qh6 29. g3 (29. Rxb4 Rxc5 30. Rxc5 Bxc5 $11)) 28... Bxc5 $11 {[%emt 0:00:02] The position is equal.} 29. Nxc5 {[%emt 0:00:06]} Rxc5 {[%emt 0:00:05]} 30. Qxa6 {[%emt 0:01:15]} Qd8 {[%emt 0:00:07]} 31. Rd4 {[%emt 0:02:50] Weighted Error Value: White=0.22 (precise) /Black=0.35} 1/2-1/2

[Event "Fredericia IM 2022"]
[Site "Fredericia"]
[Date "2022.05.26"]
[Round "2.3"]
[White "Egilstoft, FM Rogvi"]
[Black "Bogdanov, IM Egor"]
[Result "*"]
[ECO "B22"]
[WhiteElo "2334"]
[BlackElo "2415"]
[Annotator "TA"]
[PlyCount "22"]
[EventDate "2022.05.25"]
[EventType "tourn"]
[EventCountry "DEN"]
[SourceTitle "playchess.com"]
[Source "ChessBase"]
[SourceQuality "1"]
[TimeControl "40/5400+30:1800+30"]

{[%evp 9,22,0,0,0,9,0,0,-44,-58,-56,-48,-72,-68,-66,-61]} 1. e4 {[%emt 0:01:52]} c5 {[%emt 0:00:05]} 2. c3 {[%emt 0:01:01]} b6 {[%emt 0:00:04]} 3. Nf3 {[%emt 0:03:34]} Bb7 {[%emt 0:00:58]} 4. Bc4 {[%emt 0:01:50]} e6 {[%emt 0:02:13]} 5. Qe2 {[%emt 0:00:08]} Nf6 {[%emt 0:00:59]} 6. e5 {[%emt 0:06:50] B27: Sicilian: 2 Nf3, unusual Black 2nd moves.} Nd5 {[%emt 0:00:12]} 7. d4 {[%emt 0:00:19]} cxd4 {[%emt 0:02:54]} 8. cxd4 {[%emt 0:00:09]} Bb4+ {[%emt 0:00:29]} 9. Kf1 {[%emt 0:03:42]} O-O {[%emt 0:02:12]} 10. h4 {[%emt 0:04:17] [#]} Qc7 $146 {[%emt 0:04:40][%cal Ob6b5] Hoping for ...b5!} ({Predecessor:} 10... Nc6 11. h5 Rc8 12. Bg5 Nxd4 13. Qd1 Qc7 14. Bxd5 Ba6+ 15. Kg1 Ne2+ 16. Kh2 exd5 {0-1 (28) Khachatryan,V (2411)-Yegiazarian,A (2551) Yerevan 2001}) 11. Bd2 {[%emt 0:12:48]} Rc8 {[%emt 0:08:32] Black took control after the opening.  Weighted Error Value: White=0.10 (very precise) /Black=0.01 (flawless)} *

[Event "Fredericia IM 2022"]
[Site "Fredericia"]
[Date "2022.05.26"]
[Round "2.3"]
[White "Egilstoft, Rogvi"]
[Black "Bogdanov, Egor"]
[Result "0-1"]
[ECO "B22"]
[WhiteElo "2334"]
[BlackElo "2415"]
[Annotator "TA"]
[PlyCount "88"]
[EventDate "2022.05.25"]
[EventType "tourn"]
[EventCountry "DEN"]
[SourceTitle "playchess.com"]
[Source "ChessBase"]
[SourceQuality "1"]
[TimeControl "40/5400+30:1800+30"]

{[%evp 9,88,0,0,0,10,2,0,-72,-61,-56,-46,-79,-67,-73,-80,-129,-117,-112,-111,-104,-113,-107,-113,-121,-66,-88,-90,-77,-83,-81,-82,-141,-146,-143,-147,-144,-152,-160,-156,-195,-193,-262,-262,-301,-301,-299,-295,-293,-289,-281,-283,-314,-306,-305,-301,-359,-393,-508,-485,-525,-525,-496,-489,-1126,-931,-1008,-925,-1076,-1075,-547,-1164,-1130,-1097,-1049,-1024,-944,-828,-917,-735,-1125,-931]} 1. e4 {[%emt 0:01:52]} c5 {[%emt 0:00:05]} 2. c3 {[%emt 0:01:01]} b6 {[%emt 0:00:04]} 3. Nf3 {[%emt 0:03:34]} Bb7 {[%emt 0:00:58]} 4. Bc4 {[%emt 0:01:50]} e6 {[%emt 0:02:13]} 5. Qe2 {[%emt 0:00:08]} Nf6 {[%emt 0:00:59]} 6. e5 {[%emt 0:06:50] B27: Sicilian: 2 Nf3, unusual Black 2nd moves.} Nd5 {[%emt 0:00:12]} 7. d4 {[%emt 0:00:19]} cxd4 {[%emt 0:02:54]} 8. cxd4 {[%emt 0:00:09]} (8. Nxd4 $11 {keeps the balance.} Be7 9. Qg4) 8... Bb4+ $17 {[%emt 0:00:29]} 9. Kf1 {[%emt 0:03:42]} O-O {[%emt 0:02:12]} 10. h4 {[%emt 0:04:17] [#]} Qc7 $146 {[%emt 0:04:40][%cal Ob6b5]} (10... Nc6 $6 11. Bxd5 exd5 12. a3 $15) ({Predecessor:} 10... Nc6 11. h5 Rc8 12. Bg5 Nxd4 13. Qd1 Qc7 14. Bxd5 Ba6+ 15. Kg1 Ne2+ 16. Kh2 exd5 {0-1 (28) Khachatryan,V (2411)-Yegiazarian,A (2551) Yerevan 2001}) 11. Bd2 {[%emt 0:12:48]} Rc8 {[%emt 0:08:32]} 12. Bxb4 {[%emt 0:06:54]} ({Don't go for} 12. Bxd5 $2 Ba6 13. Qxa6 (13. Bxa8 $2 {perishes.} Qc1+ 14. Ne1 Bxd2 $19) 13... Nxa6 $19) (12. b3 $142) 12... Nf4 {[%emt 0:29:04]} (12... Nxb4 13. Na3 $15) 13. Qc2 {[%emt 0:04:42]} Qxc4+ {[%emt 0:00:34]} 14. Qxc4 {[%emt 0:00:07]} Rxc4 {[%emt 0:00:02]} 15. Bc3 {[%emt 0:02:27]} Rc7 {[%emt 0:04:23]} 16. Bd2 {[%emt 0:11:48]} Nd5 {[%emt 0:05:22]} ({Better is} 16... Nd3 $17 17. b3 Bxf3 18. gxf3 Nc6) 17. Rh3 {[%emt 0:06:40]} Nc6 {[%emt 0:05:00][%cal Bb8c6,Bc6b4,Bb4c2][%mdl 32]} (17... Rc2 {with more complications.} 18. b3 Nc6 19. h5 Rb2) 18. h5 {[%emt 0:05:58]} Ba6+ {[%emt 0:03:32]} 19. Kg1 {[%emt 0:02:22]} Be2 {[%emt 0:00:08] Hoping for ...Bxf3.} 20. Be3 {[%emt 0:03:40]} (20. Ng5 $142) 20... Ncb4 $36 {[%emt 0:03:38][%mdl 2048] Black has strong initiative.} 21. Na3 {[%emt 0:00:38]} Nc2 {[%emt 0:00:18] 0x0.000a5abaab66dp-1022s more active pieces. The white rooks are badly placed.} 22. Nxc2 {[%emt 0:14:04]} Rxc2 {[%emt 0:00:04]} 23. Ng5 {[%emt 0:00:12]} Bd3 {[%emt 0:05:18]} 24. h6 {[%emt 0:04:20]} gxh6 {[%emt 0:00:14]} 25. Nf3 {[%emt 0:00:57]} (25. Rxh6 {keeps fighting.} Rxb2 26. Rh3) 25... Nxe3 $19 {[%emt 0:00:23]} ({Not} 25... Rxb2 26. Bxh6 Bf5 27. Rg3+ Bg6 28. Nh2 $17) 26. fxe3 {[%emt 0:00:02]} Rxb2 {[%emt 0:00:09]} 27. Rxh6 {[%emt 0:01:48]} Rc8 {[%emt 0:00:06]} 28. Rh3 {[%emt 0:00:19]} Rb1+ {[%emt 0:01:33]} 29. Rxb1 {[%emt 0:00:04]} Bxb1 {[%emt 0:00:01][%mdl 4096] Endgame KRB-KRN} 30. a4 {[%emt 0:00:49]} Bg6 {[%emt 0:00:26]} 31. Nh2 {[%emt 0:00:25]} Kf8 {[%emt 0:03:31]} 32. Rf3 {[%emt 0:00:44]} Rc4 {[%emt 0:01:19]} 33. a5 {[%emt 0:00:18]} bxa5 {[%emt 0:00:24] Black is clearly winning.} 34. Rf1 {[%emt 0:00:03]} Rb4 {[%emt 0:00:50]} 35. Kf2 {[%emt 0:01:02]} Rb1 {[%emt 0:00:08] [#] Inhibits Ra1. And now ...a4 would win.} 36. Rxb1 {[%emt 0:00:49]} (36. Kf3 $142 Rxf1+ 37. Nxf1) 36... Bxb1 {[%emt 0:00:01] KB-KN} 37. Ke2 {[%emt 0:00:07]} a4 {[%emt 0:00:18] Strongly threatening ...a3.} 38. Kd2 {[%emt 0:00:01]} Be4 {[%emt 0:00:29]} 39. g3 {[%emt 0:00:27]} h5 {[%emt 0:00:41]} 40. Kc3 {[%emt 0:00:18]} Kg7 {[%emt 0:00:31]} 41. Kb4 {[%emt 0:03:44]} Bc6 {[%emt 0:00:26]} 42. Nf1 {[%emt 0:00:22]} Kg6 {[%emt 0:00:16] White must now prevent ...Kf5.} 43. e4 {[%emt 0:00:06]} Bxe4 {[%emt 0:00:34]} 44. Kxa4 {[%emt 0:00:24]} Bc6+ {[%emt 0:00:05] Weighted Error Value: White=0.38/Black=0.02 (flawless)} 0-1

[Event "Fredericia IM 2022"]
[Site "Fredericia"]
[Date "2022.05.26"]
[Round "2.4"]
[White "Boe, FM Mads"]
[Black "Thorsbro, Peter"]
[Result "*"]
[ECO "C28"]
[WhiteElo "2293"]
[BlackElo "2192"]
[Annotator "TA"]
[PlyCount "15"]
[EventDate "2022.05.25"]
[EventType "tourn"]
[EventCountry "DEN"]
[SourceTitle "playchess.com"]
[Source "ChessBase"]
[SourceQuality "1"]
[TimeControl "40/5400+30:1800+30"]

{[%evp 9,15,-4,0,0,2,0,0,4]} 1. e4 {[%emt 0:00:17]} e5 {[%emt 0:00:29]} 2. Nc3 {[%emt 0:00:08]} Nc6 {[%emt 0:00:24]} 3. Bc4 {[%emt 0:00:09]} Nf6 {[%emt 0:00:19]} 4. d3 {[%emt 0:00:09]} Bc5 {[%emt 0:01:26]} 5. a3 {[%emt 0:19:39]} a5 {[%emt 0:08:17] The position is equal.} 6. Be3 {[#] C28: Vienna Game: 2...Nf6 3 Bc4 Nc6.} d6 $146 {[%emt 0:06:24]} ({Predecessor:} 6... Qe7 7. Nge2 Bxe3 8. fxe3 Ng4 9. Nd5 Qh4+ 10. g3 Qd8 11. Nec3 d6 12. Qf3 Be6 13. Nxc7+ Qxc7 14. Bxe6 Nxe3 15. Bb3 Nxc2+ 16. Bxc2 Nd4 17. Ba4+ Kd8 18. Qg4 g6 19. Nd5 Qc8 20. Qg5+ {1-0 (20) Mantel,R (1939)-Gupta,M (1526) Zirndorf 2017}) 7. Bxc5 {[%emt 0:17:06]} dxc5 {[%emt 0:00:04]} 8. Nge2 {[%emt 0:04:57] An uneventful encounter.} *

[Event "Fredericia IM 2022"]
[Site "Fredericia"]
[Date "2022.05.26"]
[Round "2.4"]
[White "Boe, Mads"]
[Black "Thorsbro, Peter"]
[Result "1-0"]
[ECO "C28"]
[WhiteElo "2293"]
[BlackElo "2192"]
[Annotator "TA"]
[PlyCount "67"]
[EventDate "2022.05.25"]
[EventType "tourn"]
[EventCountry "DEN"]
[SourceTitle "playchess.com"]
[Source "ChessBase"]
[SourceQuality "1"]
[TimeControl "40/5400+30:1800+30"]

{[%evp 9,67,9,12,12,17,17,7,2,8,11,3,-16,0,0,0,-5,3,2,12,12,12,15,10,-6,-8,-6,33,29,27,9,16,15,61,16,171,176,187,115,160,196,263,209,235,0,279,281,262,107,183,155,439,405,405,306,326,325,299,308,1451,1407]} 1. e4 {[%emt 0:00:17]} e5 {[%emt 0:00:29]} 2. Nc3 {[%emt 0:00:08]} Nc6 {[%emt 0:00:24]} 3. Bc4 {[%emt 0:00:09]} Nf6 {[%emt 0:00:19]} 4. d3 {[%emt 0:00:09]} Bc5 {[%emt 0:01:26]} 5. a3 {[%emt 0:19:39]} a5 {[%emt 0:08:17]} 6. Be3 {[#] C28: Vienna Game: 2...Nf6 3 Bc4 Nc6.} d6 $146 {[%emt 0:06:24]} ({Predecessor:} 6... Qe7 7. Nge2 Bxe3 8. fxe3 Ng4 9. Nd5 Qh4+ 10. g3 Qd8 11. Nec3 d6 12. Qf3 Be6 13. Nxc7+ Qxc7 14. Bxe6 Nxe3 15. Bb3 Nxc2+ 16. Bxc2 Nd4 17. Ba4+ Kd8 18. Qg4 g6 19. Nd5 Qc8 20. Qg5+ {1-0 (20) Mantel,R (1939)-Gupta,M (1526) Zirndorf 2017}) 7. Bxc5 {[%emt 0:17:06]} dxc5 {[%emt 0:00:04]} 8. Nge2 {[%emt 0:04:57] The position is equal.} O-O {[%emt 0:03:19]} 9. O-O {[%emt 0:00:19]} Nd4 {[%emt 0:03:06]} 10. Ng3 {[%emt 0:11:32]} c6 {[%emt 0:04:01]} 11. Nce2 {[%emt 0:01:48]} b5 {[%emt 0:01:45]} 12. Ba2 {[%emt 0:00:06]} Qd6 {[%emt 0:06:45]} 13. c3 {[%emt 0:07:31]} Nxe2+ {[%emt 0:00:33]} 14. Qxe2 {[%emt 0:00:09]} Be6 {[%emt 0:05:08]} 15. Bxe6 {[%emt 0:00:39]} Qxe6 {[%emt 0:00:10]} 16. Nf5 {[%emt 0:06:00]} g6 {[%emt 0:02:36]} 17. Ne3 {[%emt 0:00:12]} Rad8 {[%emt 0:05:55]} 18. a4 $1 {[%emt 0:01:21]} Ra8 {[%emt 0:06:11]} 19. f4 {[%emt 0:03:15]} exf4 {[%emt 0:09:57]} 20. Rxf4 {[%emt 0:00:10]} Nh5 {[%emt 0:02:12]} (20... c4 $11) 21. Rf3 {[%emt 0:03:38]} Ng7 $2 {[%emt 0:04:09]} (21... c4 $11 {and Black is okay.}) 22. axb5 $18 {[%emt 0:02:11]} cxb5 {[%emt 0:00:15]} 23. Raf1 {[%emt 0:00:45]} ({Better is} 23. Nd5 $18) 23... Rad8 {[%emt 0:03:08]} 24. Rf6 {[%emt 0:00:51]} Qe5 {[%emt 0:04:51]} (24... Qe7 $142 25. Qf3 Rxd3) 25. Ng4 {[%emt 0:01:10]} Qg5 {[%emt 0:00:24]} 26. Ne3 {[%emt 0:04:47]} Qe5 $1 {[%emt 0:01:51]} 27. Qf2 {[%emt 0:05:32][%cal Rf6f7]} Rd7 {[%emt 0:00:06]} 28. Nd5 {[%emt 0:00:41]} (28. Ng4 $18 Qg5 {[#]} 29. Rxg6 $3 {[%mdl 512]} hxg6 30. Nf6+ Qxf6 31. Qxf6) 28... c4 {[%emt 0:04:03]} (28... Ne6 $16) 29. Rc6 {[%emt 0:03:20]} Rd6 $2 {[%emt 0:07:15]} (29... Ne8 $16) 30. d4 {[%emt 0:01:36]} Qe6 {[%emt 0:00:02]} 31. Rxd6 {[%emt 0:00:23]} Qxd6 {[%emt 0:00:03]} 32. Nf6+ {[%emt 0:00:17]} Kh8 {[%emt 0:00:02]} 33. Qh4 {[%emt 0:00:25][%csl Gf6][%cal Rh4h7] [#]} h5 {[%emt 0:00:26]} (33... Nh5 34. Nxh5 gxh5 35. Qxh5 Qe6 36. Qxb5 Qxe4 37. Qxc4 a4) 34. Qg5 {[%emt 0:00:09] Weighted Error Value: White=0.28 (precise) /Black=0.34} 1-0